[Event "Czech Open-E Teams 2022"]
[Site "Pardubice"]
[Date "2022.07.15"]
[Round "3.21"]
[White "Lajbl, Jan"]
[Black "Cukrowski, Filip"]
[Result "0-1"]
[ECO "B12"]
[WhiteElo "2212"]
[BlackElo "2378"]
[Annotator "ChessBase"]
[PlyCount "80"]
[EventDate "2022.07.14"]
[EventType "team-tourn"]
[EventCountry "CZE"]
[SourceTitle "playchess.com"]
[Source "ChessBase"]
[SourceQuality "1"]
[TimeControl "5400+30"]

1. e4 {[%emt 0:00:01]} c6 {[%emt 0:04:02]} 2. d4 {[%emt 0:00:46]} d5 {[%emt 0:00:05]} 3. e5 {[%emt 0:01:46]} Bf5 {[%emt 0:00:07]} 4. h4 {[%emt 0:00:08]} h5 {[%emt 0:00:17]} 5. c4 {[%emt 0:01:16]} e6 {[%emt 0:03:17]} 6. Nc3 {[%emt 0:00:37]} Nd7 {[%emt 0:02:01]} 7. Nge2 {[%emt 0:01:34]} dxc4 {[%emt 0:00:50]} 8. Ng3 {[%emt 0:01:18]} Nb6 {[%emt 0:09:26]} 9. Bg5 {[%emt 0:04:53]} Be7 {[%emt 0:16:35]} 10. Bxe7 {[%emt 0:20:14]} Nxe7 {[%emt 0:00:37]} 11. Nxh5 {[%emt 0:02:51]} Bg6 {[%emt 0:08:12]} 12. Ng3 {[%emt 0:11:05]} Nf5 {[%emt 0:00:17]} 13. Nge4 {[%emt 0:05:57]} Kf8 {[%emt 0:05:37]} 14. Qd2 {[%emt 0:06:31]} Rxh4 {[%emt 0:02:08]} 15. Rxh4 {[%emt 0:01:42]} Qxh4 {[%emt 0:00:02]} 16. g3 {[%emt 0:01:55]} Qh5 {[%emt 0:04:52]} 17. Be2 {[%emt 0:06:54]} Qh1+ {[%emt 0:00:05]} 18. Bf1 {[%emt 0:00:03]} Bh5 {[%emt 0:17:06]} 19. Qf4 {[%emt 0:07:29]} Nxd4 {[%emt 0:03:53]} 20. g4 {[%emt 0:01:23]} Qf3 {[%emt 0:00:40]} 21. Qd2 {[%emt 0:01:39]} Qxe4+ {[%emt 0:00:30]} 22. Nxe4 {[%emt 0:00:10]} Nf3+ {[%emt 0:00:03]} 23. Ke2 {[%emt 0:02:22]} Nxd2 {[%emt 0:00:03]} 24. Kxd2 {[%emt 0:00:19]} Bxg4 {[%emt 0:00:17]} 25. Nd6 {[%emt 0:01:03]} Rb8 {[%emt 0:04:38]} 26. a4 {[%emt 0:00:42]} Bf3 {[%emt 0:02:35]} 27. Ke3 {[%emt 0:01:40]} Bd5 {[%emt 0:00:33]} 28. Kd4 {[%emt 0:00:50]} Ke7 {[%emt 0:02:53]} 29. a5 {[%emt 0:01:44]} Nd7 {[%emt 0:00:08]} 30. f4 {[%emt 0:00:19]} g5 {[%emt 0:01:33]} 31. Bxc4 {[%emt 0:01:22]} gxf4 {[%emt 0:00:15]} 32. Bxd5 {[%emt 0:01:07]} cxd5 {[%emt 0:00:02]} 33. Rc1 {[%emt 0:00:31]} Nxe5 {[%emt 0:02:08]} 34. Nc8+ {[%emt 0:00:41]} Kd7 {[%emt 0:00:15]} 35. Nxa7 {[%emt 0:00:34]} Nf3+ {[%emt 0:02:07]} 36. Kc5 {[%emt 0:00:32]} Nd2 {[%emt 0:01:13]} 37. Rc2 {[%emt 0:00:43]} Nc4 {[%emt 0:00:56]} 38. b4 {[%emt 0:02:05]} Ra8 {[%emt 0:00:48]} 39. Nb5 {[%emt 0:00:32]} Rc8+ {[%emt 0:00:15]} 40. Kd4 {[%emt 0:00:04]} Nd6 {[%emt 0:00:56]} 0-1

[Event "Czech Open-E Teams 2022"]
[Site "Pardubice"]
[Date "2022.07.15"]
[Round "3.22"]
[White "Kulon, Klaudia"]
[Black "Novotny, Jaroslav"]
[Result "1-0"]
[ECO "A10"]
[WhiteElo "2286"]
[BlackElo "2169"]
[Annotator "ChessBase"]
[PlyCount "77"]
[EventDate "2022.07.14"]
[EventType "team-tourn"]
[EventCountry "CZE"]
[SourceTitle "playchess.com"]
[Source "ChessBase"]
[SourceQuality "1"]
[TimeControl "5400+30"]

1. c4 {[%emt 0:00:10]} g6 {[%emt 0:00:08]} 2. g3 {[%emt 0:00:07]} Bg7 {[%emt 0:00:09]} 3. Bg2 {[%emt 0:00:04]} Nf6 {[%emt 0:01:30]} 4. Nc3 {[%emt 0:00:07]} O-O {[%emt 0:00:08]} 5. e4 {[%emt 0:00:40]} d6 {[%emt 0:01:23]} 6. Nge2 {[%emt 0:00:24]} c5 {[%emt 0:01:41]} 7. O-O {[%emt 0:00:32]} Nc6 {[%emt 0:00:08]} 8. d3 {[%emt 0:00:23]} Ne8 {[%emt 0:05:42]} 9. a3 {[%emt 0:02:18]} Nc7 {[%emt 0:01:12]} 10. Rb1 {[%emt 0:00:08]} Ne6 {[%emt 0:04:33]} 11. b4 {[%emt 0:02:29]} Rb8 {[%emt 0:03:06]} 12. Be3 {[%emt 0:05:55]} Ned4 {[%emt 0:09:14]} 13. h3 {[%emt 0:00:53]} Bd7 {[%emt 0:05:41]} 14. f4 {[%emt 0:06:04]} a6 {[%emt 0:06:23]} 15. Kh2 {[%emt 0:04:42]} b5 {[%emt 0:05:31]} 16. cxb5 {[%emt 0:05:59]} axb5 {[%emt 0:00:22]} 17. Qd2 {[%emt 0:00:42]} e6 {[%emt 0:03:59]} 18. Rfc1 {[%emt 0:06:49]} Qe7 {[%emt 0:02:09]} 19. bxc5 {[%emt 0:00:35]} dxc5 {[%emt 0:00:12]} 20. e5 {[%emt 0:00:09]} Nxe2 {[%emt 0:13:06]} 21. Qxe2 {[%emt 0:00:49]} Nd4 {[%emt 0:01:47]} 22. Qf2 {[%emt 0:00:16]} f6 {[%emt 0:04:33]} 23. exf6 {[%emt 0:01:44]} Bxf6 {[%emt 0:00:26]} 24. Ne4 {[%emt 0:00:06]} Rbc8 {[%emt 0:02:14]} 25. Nxf6+ {[%emt 0:00:58]} Qxf6 {[%emt 0:02:02]} 26. Rxc5 {[%emt 0:01:30]} Rxc5 {[%emt 0:02:58]} 27. Bxd4 {[%emt 0:00:14]} Rc2 {[%emt 0:00:15]} 28. Qxc2 {[%emt 0:02:10]} Qxd4 {[%emt 0:00:06]} 29. Rb4 {[%emt 0:00:31]} Qd6 {[%emt 0:01:00]} 30. h4 {[%emt 0:05:23]} Rc8 {[%emt 0:03:10]} 31. Qb2 {[%emt 0:01:14]} Qc5 {[%emt 0:01:41]} 32. Qf6 {[%emt 0:01:41]} Rf8 {[%emt 0:02:19]} 33. Qd4 {[%emt 0:00:45]} Qc7 {[%emt 0:00:57]} 34. a4 {[%emt 0:01:43]} Rf5 {[%emt 0:03:58]} 35. Rb2 {[%emt 0:04:32]} Rc5 {[%emt 0:03:00]} 36. a5 {[%emt 0:01:24]} Rc1 {[%emt 0:03:10]} 37. Qb6 {[%emt 0:01:59]} Kf7 {[%emt 0:03:22]} 38. Ra2 {[%emt 0:02:30]} Ke7 {[%emt 0:00:55]} 39. Qd4 {[%emt 0:01:03]} 1-0

[Event "Czech Open-E Teams 2022"]
[Site "Pardubice"]
[Date "2022.07.15"]
[Round "3.23"]
[White "Zelbova, Lada"]
[Black "Mondrzycki, Bartlomiej"]
[Result "0-1"]
[ECO "A46"]
[WhiteElo "1898"]
[BlackElo "2180"]
[Annotator "ChessBase"]
[PlyCount "74"]
[EventDate "2022.07.14"]
[EventType "team-tourn"]
[EventCountry "CZE"]
[SourceTitle "playchess.com"]
[Source "ChessBase"]
[SourceQuality "1"]
[TimeControl "5400+30"]

1. d4 {[%emt 0:00:05]} Nf6 {[%emt 0:00:02]} 2. Nf3 {[%emt 0:00:06]} e6 {[%emt 0:00:04]} 3. Bf4 {[%emt 0:00:50]} c5 {[%emt 0:00:07]} 4. e3 {[%emt 0:00:42]} cxd4 {[%emt 0:00:03]} 5. exd4 {[%emt 0:00:17]} b6 {[%emt 0:00:07]} 6. Nbd2 {[%emt 0:01:33]} Be7 {[%emt 0:00:11]} 7. Bd3 {[%emt 0:06:40]} O-O {[%emt 0:02:16]} 8. Qe2 {[%emt 0:04:53]} Bb7 {[%emt 0:01:30]} 9. c3 {[%emt 0:02:24]} d6 {[%emt 0:06:20]} 10. h3 {[%emt 0:03:58]} Nbd7 {[%emt 0:00:28]} 11. O-O {[%emt 0:01:36]} h6 {[%emt 0:04:12]} 12. a4 {[%emt 0:03:02]} Nd5 {[%emt 0:03:53]} 13. Bg3 {[%emt 0:03:37]} a6 {[%emt 0:00:32]} 14. Ra3 {[%emt 0:10:22]} N7f6 {[%emt 0:02:34]} 15. Rb3 {[%emt 0:09:18]} Nh5 {[%emt 0:04:13]} 16. Qe4 {[%emt 0:00:58]} Nhf6 {[%emt 0:10:42]} 17. Qe2 {[%emt 0:00:17]} a5 {[%emt 0:02:30]} 18. Ne1 {[%emt 0:04:59]} Rb8 {[%emt 0:11:22]} 19. Nc2 {[%emt 0:05:22]} Bc6 {[%emt 0:04:09]} 20. Bb5 {[%emt 0:04:02]} Ba8 {[%emt 0:00:03]} 21. c4 {[%emt 0:06:16]} Nc7 {[%emt 0:00:47]} 22. Rc3 {[%emt 0:02:21]} Rc8 {[%emt 0:08:51]} 23. Re1 {[%emt 0:06:49]} d5 {[%emt 0:04:16]} 24. b3 {[%emt 0:03:02]} Nxb5 {[%emt 0:12:43]} 25. axb5 {[%emt 0:00:07]} dxc4 {[%emt 0:04:50]} 26. bxc4 {[%emt 0:00:07]} Nd5 {[%emt 0:01:02]} 27. Rd3 {[%emt 0:01:46]} Nb4 {[%emt 0:00:08]} 28. Nxb4 {[%emt 0:00:07]} Bxb4 {[%emt 0:00:05]} 29. Be5 {[%emt 0:01:33]} Bxd2 {[%emt 0:07:42]} 30. Rxd2 {[%emt 0:01:27]} Qg5 {[%emt 0:02:07]} 31. Bg3 {[%emt 0:03:44]} Rxc4 {[%emt 0:01:22]} 32. Qxc4 {[%emt 0:06:09]} Qxd2 {[%emt 0:00:05]} 33. f3 {[%emt 0:00:55]} Bd5 {[%emt 0:00:27]} 34. Qc7 {[%emt 0:01:03]} a4 {[%emt 0:01:58]} 35. Qxb6 {[%emt 0:01:36]} a3 {[%emt 0:00:04]} 36. Qc7 {[%emt 0:02:56]} a2 {[%emt 0:00:29]} 37. Qc1 {[%emt 0:02:13]} Qb4 0-1

[Event "Czech Open-E Teams 2022"]
[Site "Pardubice"]
[Date "2022.07.15"]
[Round "3.24"]
[White "Daniel, Damian"]
[Black "Kabelka, Ondrej"]
[Result "1/2-1/2"]
[ECO "A65"]
[WhiteElo "2172"]
[BlackElo "2014"]
[Annotator "ChessBase"]
[PlyCount "50"]
[EventDate "2022.07.14"]
[EventType "team-tourn"]
[EventCountry "CZE"]
[SourceTitle "playchess.com"]
[Source "ChessBase"]
[SourceQuality "1"]
[TimeControl "5400+30"]

1. d4 {[%emt 0:00:03]} Nf6 {[%emt 0:00:20]} 2. c4 {[%emt 0:00:15]} c5 {[%emt 0:00:40]} 3. d5 {[%emt 0:00:07]} e6 {[%emt 0:00:01]} 4. Nc3 {[%emt 0:00:15]} exd5 {[%emt 0:00:14]} 5. cxd5 {[%emt 0:00:07]} d6 {[%emt 0:00:07]} 6. e4 {[%emt 0:00:12]} g6 {[%emt 0:00:14]} 7. h3 {[%emt 0:00:36]} Bg7 {[%emt 0:00:24]} 8. Nf3 {[%emt 0:00:07]} O-O {[%emt 0:00:58]} 9. Bd3 {[%emt 0:00:57]} b5 {[%emt 0:02:32]} 10. Bxb5 {[%emt 0:00:16]} Nxe4 {[%emt 0:00:40]} 11. Nxe4 {[%emt 0:00:07]} Qa5+ {[%emt 0:00:10]} 12. Nfd2 {[%emt 0:00:09]} Qxb5 {[%emt 0:00:12]} 13. Nxd6 {[%emt 0:00:07]} Qa6 {[%emt 0:00:48]} 14. N2c4 {[%emt 0:00:48]} Nd7 {[%emt 0:02:07]} 15. O-O {[%emt 0:00:50]} Ne5 {[%emt 0:03:21]} 16. Nxc8 {[%emt 0:03:52]} Raxc8 {[%emt 0:02:07]} 17. Nxe5 {[%emt 0:01:44]} Bxe5 {[%emt 0:00:43]} 18. Bg5 {[%emt 0:25:05]} Bxb2 {[%emt 0:10:04]} 19. Rb1 {[%emt 0:00:44]} Bd4 {[%emt 0:09:38]} 20. Be7 {[%emt 0:06:45]} Qxa2 {[%emt 0:08:49]} 21. d6 {[%emt 0:10:06]} Rfd8 {[%emt 0:06:25]} 22. Rb7 {[%emt 0:13:52]} Qd5 {[%emt 0:02:48]} 23. Qf3 {[%emt 0:01:28]} Qe6 {[%emt 0:08:44]} 24. Bxd8 {[%emt 0:23:08]} Rxd8 {[%emt 0:02:56]} 25. Rxa7 {[%emt 0:04:24]} Rxd6 {[%emt 0:01:37]} 1/2-1/2

[Event "Czech Open-E Teams 2022"]
[Site "Pardubice"]
[Date "2022.07.15"]
[Round "3.25"]
[White "Hrdina, Robin"]
[Black "Sodoma, Jan"]
[Result "1/2-1/2"]
[ECO "C77"]
[WhiteElo "2162"]
[BlackElo "2312"]
[Annotator "ChessBase"]
[PlyCount "76"]
[EventDate "2022.07.14"]
[EventType "team-tourn"]
[EventCountry "CZE"]
[SourceTitle "playchess.com"]
[Source "ChessBase"]
[SourceQuality "1"]
[TimeControl "5400+30"]

1. e4 {[%emt 0:00:05]} e5 {[%emt 0:15:19]} 2. Nf3 {[%emt 0:00:07]} Nc6 {[%emt 0:00:15]} 3. Bb5 {[%emt 0:00:06]} a6 {[%emt 0:00:08]} 4. Ba4 {[%emt 0:00:04]} Nf6 {[%emt 0:00:07]} 5. d3 {[%emt 0:00:15]} d6 {[%emt 0:01:23]} 6. O-O {[%emt 0:00:07]} b5 {[%emt 0:02:22]} 7. Bb3 {[%emt 0:00:06]} Be7 {[%emt 0:00:05]} 8. h3 {[%emt 0:00:51]} Na5 {[%emt 0:00:27]} 9. Nc3 {[%emt 0:00:14]} Nxb3 {[%emt 0:00:18]} 10. axb3 {[%emt 0:00:08]} Bb7 {[%emt 0:00:08]} 11. Re1 {[%emt 0:00:37]} O-O {[%emt 0:03:00]} 12. Bg5 {[%emt 0:00:11]} h6 {[%emt 0:02:57]} 13. Be3 {[%emt 0:01:05]} Re8 {[%emt 0:00:20]} 14. Bd2 {[%emt 0:21:37]} Bf8 {[%emt 0:00:44]} 15. Ne2 {[%emt 0:01:46]} g6 {[%emt 0:01:22]} 16. Ng3 {[%emt 0:01:02]} Bg7 {[%emt 0:00:09]} 17. Nh2 {[%emt 0:01:42]} d5 {[%emt 0:03:47]} 18. Ng4 {[%emt 0:03:50]} Nxg4 {[%emt 0:00:52]} 19. hxg4 {[%emt 0:00:11]} Qh4 {[%emt 0:00:34]} 20. Qf3 {[%emt 0:08:31]} Rad8 {[%emt 0:07:37]} 21. Nf1 {[%emt 0:08:57]} dxe4 {[%emt 0:27:43]} 22. dxe4 {[%emt 0:00:25]} h5 {[%emt 0:00:19]} 23. gxh5 {[%emt 0:02:00]} Rd4 {[%emt 0:02:13]} 24. hxg6 {[%emt 0:05:31]} fxg6 {[%emt 0:00:07]} 25. Bc3 {[%emt 0:00:27]} Rxe4 {[%emt 0:01:22]} 26. g3 {[%emt 0:06:44]} Rxe1 {[%emt 0:05:01]} 27. Rxe1 {[%emt 0:08:11]} Bxf3 {[%emt 0:00:12]} 28. gxh4 {[%emt 0:00:05]} Bc6 {[%emt 0:04:44]} 29. Nh2 {[%emt 0:02:40]} e4 {[%emt 0:03:44]} 30. Bxg7 {[%emt 0:01:57]} Kxg7 {[%emt 0:00:07]} 31. Kg2 {[%emt 0:03:21]} Rd8 {[%emt 0:01:50]} 32. Nf1 {[%emt 0:02:10]} Kf6 {[%emt 0:02:00]} 33. Ne3 {[%emt 0:00:12]} Ke5 {[%emt 0:01:20]} 34. Kg3 {[%emt 0:01:49]} Rf8 {[%emt 0:02:55]} 35. Rd1 {[%emt 0:02:56]} Rf3+ {[%emt 0:00:09]} 36. Kg2 {[%emt 0:00:08]} Rf4 {[%emt 0:00:25]} 37. Kg3 {[%emt 0:00:42]} Rf3+ {[%emt 0:00:06]} 38. Kg2 {[%emt 0:00:04]} Rf4 {[%emt 0:00:21]} 1/2-1/2

[Event "Czech Open-E Teams 2022"]
[Site "Pardubice"]
[Date "2022.07.15"]
[Round "3.26"]
[White "Vitak, Jiri"]
[Black "Zvolensky, David"]
[Result "0-1"]
[ECO "E06"]
[WhiteElo "2223"]
[BlackElo "2196"]
[Annotator "ChessBase"]
[PlyCount "100"]
[EventDate "2022.07.14"]
[EventType "team-tourn"]
[EventCountry "CZE"]
[SourceTitle "playchess.com"]
[Source "ChessBase"]
[SourceQuality "1"]
[TimeControl "5400+30"]

1. d4 {[%emt 0:00:05]} Nf6 {[%emt 0:00:04]} 2. c4 {[%emt 0:00:14]} e6 {[%emt 0:00:03]} 3. g3 {[%emt 0:00:04]} d5 {[%emt 0:00:05]} 4. Nf3 {[%emt 0:00:04]} Be7 {[%emt 0:00:06]} 5. Bg2 {[%emt 0:00:05]} O-O {[%emt 0:00:05]} 6. O-O {[%emt 0:00:04]} dxc4 {[%emt 0:00:03]} 7. Qa4 {[%emt 0:00:03]} a6 {[%emt 0:00:40]} 8. Qxc4 {[%emt 0:00:13]} b5 {[%emt 0:00:05]} 9. Qc2 {[%emt 0:00:03]} Bb7 {[%emt 0:00:03]} 10. Bd2 {[%emt 0:00:05]} Be4 {[%emt 0:00:02]} 11. Qc1 {[%emt 0:00:05]} c6 {[%emt 0:00:03]} 12. Be3 {[%emt 0:00:29]} Nd5 {[%emt 0:05:04]} 13. Nc3 {[%emt 0:01:41]} Nxe3 {[%emt 0:05:06]} 14. Qxe3 {[%emt 0:00:02]} Bd5 {[%emt 0:00:09]} 15. Qd2 {[%emt 0:06:47]} Bxf3 {[%emt 0:03:44]} 16. Bxf3 {[%emt 0:00:56]} Ra7 {[%emt 0:00:02]} 17. Rfd1 {[%emt 0:02:43]} Rd7 {[%emt 0:04:09]} 18. e3 {[%emt 0:02:26]} c5 {[%emt 0:02:21]} 19. a4 {[%emt 0:19:36]} cxd4 {[%emt 0:03:05]} 20. exd4 {[%emt 0:00:10]} b4 {[%emt 0:00:47]} 21. Ne2 {[%emt 0:01:51]} a5 {[%emt 0:06:11]} 22. Qe3 {[%emt 0:07:14]} Qb6 {[%emt 0:02:39]} 23. Rd3 {[%emt 0:02:58]} Rfd8 {[%emt 0:00:57]} 24. b3 {[%emt 0:07:21]} Nc6 {[%emt 0:05:25]} 25. Rad1 {[%emt 0:25:04]} Bf6 {[%emt 0:01:36]} 26. Bxc6 {[%emt 0:00:23]} Qxc6 {[%emt 0:00:01]} 27. f4 {[%emt 0:01:35]} h5 {[%emt 0:02:00]} 28. Kf2 {[%emt 0:01:02]} Rd5 {[%emt 0:02:02]} 29. h4 {[%emt 0:04:06]} g6 {[%emt 0:02:05]} 30. Ng1 {[%emt 0:06:12]} e5 {[%emt 0:08:11]} 31. fxe5 {[%emt 0:03:16]} Bxe5 {[%emt 0:00:06]} 32. Ne2 {[%emt 0:01:42]} Bf6 {[%emt 0:05:55]} 33. Kg1 {[%emt 0:04:49]} Qd7 {[%emt 0:05:49]} 34. Qf2 {[%emt 0:01:15]} Bg7 {[%emt 0:08:03]} 35. Kh2 {[%emt 0:01:38]} Qd6 {[%emt 0:06:36]} 36. Qg2 {[%emt 0:01:26]} Re8 {[%emt 0:05:49]} 37. Qf2 {[%emt 0:00:39]} Re4 {[%emt 0:05:21]} 38. Kg1 {[%emt 0:00:24]} Rf5 {[%emt 0:02:01]} 39. Rf3 {[%emt 0:00:34]} Rxf3 {[%emt 0:01:37]} 40. Qxf3 {[%emt 0:00:07]} f5 {[%emt 0:01:03]} 41. d5 {[%emt 0:00:30]} Be5 {[%emt 0:00:48]} 42. Kg2 {[%emt 0:00:49]} Rg4 {[%emt 0:03:50]} 43. Kh3 {[%emt 0:00:36]} f4 {[%emt 0:02:28]} 44. gxf4 {[%emt 0:00:31]} Qf6 {[%emt 0:00:18]} 45. Qf2 {[%emt 0:00:12]} Qf5 {[%emt 0:00:49]} 46. Ng3 {[%emt 0:00:31]} Rxh4+ {[%emt 0:00:22]} 47. Kg2 {[%emt 0:00:04]} Qh3+ {[%emt 0:00:35]} 48. Kg1 {[%emt 0:00:07]} Bxf4 {[%emt 0:00:19]} 49. d6 {[%emt 0:00:40]} Bxg3 {[%emt 0:01:09]} 50. Qe2 {[%emt 0:00:13]} Qh1# 0-1

[Event "Czech Open-E Teams 2022"]
[Site "Pardubice"]
[Date "2022.07.15"]
[Round "3.27"]
[White "Pychova, Nela"]
[Black "Rodshtein, Tereza"]
[Result "1-0"]
[ECO "A12"]
[WhiteElo "2075"]
[BlackElo "2169"]
[Annotator "ChessBase"]
[PlyCount "117"]
[EventDate "2022.07.14"]
[EventType "team-tourn"]
[EventCountry "CZE"]
[SourceTitle "playchess.com"]
[Source "ChessBase"]
[SourceQuality "1"]
[TimeControl "5400+30"]

1. c4 {[%emt 0:00:04]} c6 {[%emt 0:02:36]} 2. Nf3 {[%emt 0:09:19]} Nf6 {[%emt 0:00:31]} 3. g3 {[%emt 0:02:17]} d5 {[%emt 0:00:44]} 4. b3 {[%emt 0:01:10]} Bg4 {[%emt 0:03:55]} 5. Bb2 {[%emt 0:06:11]} e6 {[%emt 0:09:12]} 6. Bg2 {[%emt 0:01:08]} Nbd7 {[%emt 0:00:32]} 7. O-O {[%emt 0:00:41]} Bd6 {[%emt 0:00:47]} 8. Nc3 {[%emt 0:04:02]} dxc4 {[%emt 0:06:17]} 9. bxc4 {[%emt 0:00:26]} e5 {[%emt 0:00:20]} 10. d3 {[%emt 0:03:17]} O-O {[%emt 0:01:41]} 11. Rb1 {[%emt 0:01:33]} Qe7 {[%emt 0:04:04]} 12. Qc2 {[%emt 0:03:35]} Rfe8 {[%emt 0:01:45]} 13. Nd2 {[%emt 0:03:01]} Nf8 {[%emt 0:02:16]} 14. Nb3 {[%emt 0:14:08]} Rad8 {[%emt 0:01:16]} 15. Nd1 {[%emt 0:03:02]} h6 {[%emt 0:07:06]} 16. Ne3 {[%emt 0:02:16]} Bc8 {[%emt 0:01:20]} 17. Bc3 {[%emt 0:08:39]} Ng4 {[%emt 0:04:59]} 18. Nxg4 {[%emt 0:04:41]} Bxg4 {[%emt 0:00:02]} 19. Na5 {[%emt 0:00:14]} Bc8 {[%emt 0:02:58]} 20. Qb2 {[%emt 0:01:34]} Rd7 {[%emt 0:01:56]} 21. Bh3 {[%emt 0:04:04]} Rc7 {[%emt 0:00:51]} 22. Bxc8 {[%emt 0:01:10]} Rexc8 {[%emt 0:00:37]} 23. c5 {[%emt 0:01:53]} Bxc5 {[%emt 0:01:19]} 24. Bxe5 {[%emt 0:00:07]} Rd7 {[%emt 0:03:20]} 25. Bxg7 {[%emt 0:01:04]} Qg5 {[%emt 0:01:12]} 26. Bf6 {[%emt 0:03:10]} Qf5 {[%emt 0:03:53]} 27. Nb3 {[%emt 0:02:57]} Bb6 {[%emt 0:00:23]} 28. Nd2 {[%emt 0:02:24]} Re8 {[%emt 0:05:45]} 29. Ne4 {[%emt 0:02:18]} Nh7 {[%emt 0:00:17]} 30. Bc3 {[%emt 0:04:30]} Re6 {[%emt 0:01:07]} 31. a4 {[%emt 0:01:18]} Rd5 {[%emt 0:05:30]} 32. a5 {[%emt 0:03:05]} Qh3 {[%emt 0:01:05]} 33. g4 {[%emt 0:07:09]} Rg6 {[%emt 0:10:01]} 34. Kh1 {[%emt 0:00:30]} Rb5 {[%emt 0:03:11]} 35. Qxb5 {[%emt 0:00:28]} cxb5 {[%emt 0:02:32]} 36. axb6 {[%emt 0:00:07]} a6 {[%emt 0:00:51]} 37. f3 {[%emt 0:00:46]} Rxb6 {[%emt 0:00:40]} 38. Ba5 {[%emt 0:00:34]} Rc6 {[%emt 0:00:50]} 39. Bd8 {[%emt 0:00:11]} f6 {[%emt 0:02:06]} 40. d4 {[%emt 0:00:55]} Rc2 {[%emt 0:01:39]} 41. Rfe1 {[%emt 0:00:28]} Kf7 {[%emt 0:02:06]} 42. Rbc1 {[%emt 0:00:27]} Rb2 {[%emt 0:04:30]} 43. Rc7+ {[%emt 0:00:33]} Kg6 {[%emt 0:00:24]} 44. Ng3 {[%emt 0:00:31]} h5 {[%emt 0:02:16]} 45. Nxh5 {[%emt 0:00:26]} Kh6 {[%emt 0:00:42]} 46. Ng3 {[%emt 0:00:28]} Kg5 {[%emt 0:00:32]} 47. Rg7+ {[%emt 0:00:34]} Kf4 {[%emt 0:00:03]} 48. d5 {[%emt 0:00:31]} Ke3 {[%emt 0:01:22]} 49. Bb6+ {[%emt 0:00:30]} Kd2 {[%emt 0:00:11]} 50. Ra1 {[%emt 0:00:32]} Ng5 {[%emt 0:00:21]} 51. Re7 {[%emt 0:00:24]} Kc3 {[%emt 0:00:32]} 52. Rc7+ {[%emt 0:00:19]} Kb3 {[%emt 0:00:14]} 53. Bd4 {[%emt 0:00:43]} Rxe2 {[%emt 0:01:38]} 54. Rc3+ {[%emt 0:00:28]} Kb4 {[%emt 0:00:17]} 55. Rb1+ {[%emt 0:00:34]} Ka4 {[%emt 0:00:10]} 56. Nxe2 {[%emt 0:00:21]} Nxf3 {[%emt 0:00:05]} 57. Bg1 {[%emt 0:00:37]} Qxg4 {[%emt 0:00:16]} 58. Ra1+ {[%emt 0:00:15]} Kb4 {[%emt 0:00:07]} 59. Bc5# 1-0

[Event "Czech Open-E Teams 2022"]
[Site "Pardubice"]
[Date "2022.07.15"]
[Round "3.28"]
[White "Sykora, Marek"]
[Black "Vlkova, Anezka"]
[Result "1-0"]
[ECO "C02"]
[WhiteElo "2240"]
[BlackElo "1954"]
[Annotator "ChessBase"]
[PlyCount "87"]
[EventDate "2022.07.14"]
[EventType "team-tourn"]
[EventCountry "CZE"]
[SourceTitle "playchess.com"]
[Source "ChessBase"]
[SourceQuality "1"]
[TimeControl "5400+30"]

1. e4 {[%emt 0:00:06]} e6 {[%emt 0:00:06]} 2. d4 {[%emt 0:00:21]} d5 {[%emt 0:00:06]} 3. e5 {[%emt 0:00:07]} c5 {[%emt 0:00:06]} 4. c3 {[%emt 0:00:06]} Nc6 {[%emt 0:00:04]} 5. Nf3 {[%emt 0:00:07]} Bd7 {[%emt 0:00:44]} 6. a3 {[%emt 0:00:58]} c4 {[%emt 0:01:19]} 7. Nbd2 {[%emt 0:01:42]} Na5 {[%emt 0:01:17]} 8. g3 {[%emt 0:00:38]} Bc6 {[%emt 0:04:07]} 9. Bh3 {[%emt 0:00:37]} Qd7 {[%emt 0:01:07]} 10. O-O {[%emt 0:05:29]} Ne7 {[%emt 0:08:13]} 11. Qe2 {[%emt 0:04:27]} h6 {[%emt 0:07:32]} 12. Ne1 {[%emt 0:04:05]} g5 {[%emt 0:05:39]} 13. f4 {[%emt 0:01:02]} Rg8 {[%emt 0:05:58]} 14. fxg5 {[%emt 0:01:55]} Ng6 {[%emt 0:17:04]} 15. gxh6 {[%emt 0:06:49]} Bxh6 {[%emt 0:00:07]} 16. Ne4 dxe4 {[%emt 0:02:35]} 17. Bxh6 {[%emt 0:01:59]} Rh8 {[%emt 0:02:16]} 18. Qe3 {[%emt 0:00:08]} O-O-O {[%emt 0:02:13]} 19. Bg2 {[%emt 0:00:42]} Nb3 {[%emt 0:02:38]} 20. Rd1 {[%emt 0:01:49]} Nxe5 {[%emt 0:05:07]} 21. Bg5 {[%emt 0:18:04]} Rdg8 {[%emt 0:08:54]} 22. h3 {[%emt 0:06:21]} Nd3 {[%emt 0:04:20]} 23. Bf6 {[%emt 0:07:25]} Rh7 {[%emt 0:01:25]} 24. Nxd3 {[%emt 0:02:44]} exd3 {[%emt 0:01:40]} 25. g4 {[%emt 0:08:30]} Rg6 {[%emt 0:05:57]} 26. g5 {[%emt 0:03:40]} Bxg2 {[%emt 0:02:47]} 27. Kxg2 {[%emt 0:00:09]} Qd5+ {[%emt 0:01:33]} 28. Kg3 {[%emt 0:04:11]} Na5 {[%emt 0:01:09]} 29. h4 {[%emt 0:00:58]} Nc6 {[%emt 0:00:40]} 30. b3 b5 {[%emt 0:02:17]} 31. bxc4 {[%emt 0:01:11]} bxc4 {[%emt 0:00:01]} 32. Rb1 {[%emt 0:01:39]} Na5 {[%emt 0:04:23]} 33. Rb4 {[%emt 0:01:45]} Nc6 {[%emt 0:00:26]} 34. Rb2 {[%emt 0:01:35]} Qd6+ {[%emt 0:00:51]} 35. Be5 {[%emt 0:00:29]} Qd5 {[%emt 0:02:07]} 36. Rfb1 {[%emt 0:01:00]} f5 {[%emt 0:01:02]} 37. Rb5 {[%emt 0:01:12]} Qe4 {[%emt 0:00:33]} 38. Qxe4 {[%emt 0:00:16]} fxe4 {[%emt 0:00:16]} 39. Rc5 {[%emt 0:00:05]} Kd7 {[%emt 0:00:46]} 40. Rb7+ {[%emt 0:04:01]} Kd8 {[%emt 0:00:27]} 41. Rxh7 {[%emt 0:00:43]} d2 {[%emt 0:00:23]} 42. Rxc6 {[%emt 0:00:16]} d1=Q {[%emt 0:00:39]} 43. Rh8+ {[%emt 0:00:07]} Kd7 {[%emt 0:00:12]} 44. Rc7# {[%emt 0:00:06]} 1-0